bitfinex/quotes_ETHUSD_20250424
["timestamp","ask_amount","ask_price","bid_price","bid_amount"]
[1745487497894,3.0,1741.9,1741.6,0.00896783]
[1745487498300,4.2641,1741.8,1741.6,0.00896783]
[1745487498637,3.0,1741.7,1741.6,0.00896783]
[1745487498810,6.442,1741.7,1741.6,0.00896783]
[1745487500697,3.0,1741.7,1741.6,0.00896783]
[1745487500895,3.0,1741.7,1741.4,0.00896783]
[1745487502444,0.8221,1741.8,1741.4,0.00896783]
[1745487502724,6.47970957,1742.1,1741.5,0.8222]
[1745487503393,3.0,1742.0,1741.5,0.8222]
[1745487504124,3.0,1742.0,1741.7,0.7735]
[1745487506912,3.0,1742.0,1741.8,0.00896783]
[1745487513693,3.0,1742.0,1741.1,5.74338897]
[1745487513694,8.33085768,1741.9,1740.7,0.76040199]
[1745487513799,3.442,1741.2,1740.3,0.7901]
[1745487514004,12.26100812,1741.1,1740.3,0.7901]
[1745487514206,0.55,1741.0,1740.3,0.7901]
[1745487514437,5.44507139,1740.9,1740.3,0.7901]
[1745487514638,0.43018701,1740.9,1740.3,0.7901]
[1745487514937,0.8109,1741.1,1740.3,0.7901]
[1745487515145,0.8109,1741.1,1740.4,6.3051]
[1745487515300,0.8109,1741.1,1740.5,5.506]
[1745487515499,0.8109,1741.1,1740.6,0.5506]
[1745487516355,0.7798,1740.9,1740.3,0.8111]
[1745487517436,0.55,1740.8,1740.3,6.3091]
[1745487518845,0.43703451,1740.8,1740.3,0.8111]
[1745487519038,1.3133,1741.1,1740.4,5.498]
[1745487519973,0.7633,1741.1,1740.5,0.7659]
[1745487520279,1.43006231,1741.3,1740.5,0.7659]
[1745487520422,1.10829572,1741.3,1740.5,0.7659]
[1745487521261,1.99565804,1741.3,1740.5,0.7659]
[1745487522230,0.42153275,1741.3,1740.5,0.7659]
[1745487522430,3.0,1741.4,1740.5,0.7659]
[1745487524365,0.7551,1741.2,1740.5,0.7659]
[1745487525629,4.7464,1740.9,1740.2,1.2256744]
[1745487525931,3.55,1740.6,1740.2,1.2256744]
[1745487529132,0.55,1740.4,1740.2,0.4094744]
[1745487529367,0.97166701,1740.4,1740.2,0.4094744]
[1745487535454,0.55,1739.8,1738.6,0.8232]
[1745487535651,3.0,1739.6,1738.7,0.8232]
[1745487536544,0.898628,1739.8,1738.9,0.7584]
[1745487536878,1.33642806,1739.8,1739.0,5.501]
[1745487537076,1.33642806,1739.8,1739.1,0.7584]
[1745487539479,3.0,1739.7,1739.1,0.7584]
[1745487539684,1.33642806,1739.8,1739.1,0.7584]
[1745487541063,3.8135,1740.2,1739.2,0.7812]
[1745487541302,4.53270278,1740.2,1739.2,0.7812]
[1745487543255,4.97033034,1740.2,1739.3,0.8211]
[1745487543563,3.43762756,1740.2,1739.5,0.8211]
[1745487544902,3.43762756,1740.2,1739.6,5.503]
[1745487546585,3.43762756,1740.2,1739.7,0.7696]
[1745487547197,0.43762756,1740.2,1739.7,0.7696]
[1745487547367,3.0,1740.2,1739.8,6.274]
[1745487547585,3.42401988,1740.2,1740.0,0.775]
[1745487549612,6.03848751,1740.3,1740.0,0.775]
[1745487552482,6.46901751,1740.3,1740.0,0.775]
[1745487554817,6.03848751,1740.3,1740.0,0.775]
[1745487555290,3.0,1740.7,1740.0,0.775]
[1745487555498,3.827554,1740.7,1740.0,0.775]
[1745487555920,0.827554,1740.7,1740.0,0.775]
[1745487556213,0.75182079,1740.7,1740.0,0.775]
[1745487556625,0.42995935,1740.7,1740.0,0.775]
[1745487556798,0.32186144,1740.8,1740.1,0.7872]
[1745487556994,0.32186144,1740.8,1740.2,0.7872]
[1745487557301,3.0,1740.8,1740.4,0.8298]
[1745487557815,1.10876144,1741.2,1740.4,0.8298]
[1745487559017,4.97953971,1741.2,1740.4,0.8298]
[1745487559225,3.49795397,1741.1,1740.4,1.46258]
[1745487560325,3.81981541,1741.1,1740.4,1.46258]
[1745487560725,0.8085,1741.0,1740.4,6.95958]
[1745487563694,6.45,1740.9,1740.4,6.95958]
[1745487563902,3.0,1740.7,1740.2,5.497]
[1745487564232,6.77102588,1740.7,1740.1,5.497]
[1745487564994,6.77102588,1740.7,1740.0,0.8244]
[1745487565194,4.13053847,1740.7,1740.1,5.497]
[1745487565394,3.80951259,1740.7,1740.2,0.7985]
[1745487566400,3.0,1740.5,1740.2,0.7985]
[1745487566747,3.8141,1740.5,1740.1,5.497]
[1745487567131,0.8141,1740.5,1740.1,5.497]
[1745487568156,0.8141,1740.5,1740.2,5.497]
[1745487568358,0.8246,1740.4,1739.8,0.7903]
[1745487568512,1.25206,1740.4,1739.8,0.7903]
[1745487569019,7.70206,1740.4,1739.8,0.7903]
[1745487569425,1.25206,1740.4,1739.8,0.7903]
[1745487569625,0.8246,1740.4,1739.8,0.7903]
[1745487569953,0.8246,1740.4,1739.9,5.497]
[1745487571255,0.6690825,1740.4,1739.9,5.497]
[1745487571948,0.32130778,1740.6,1740.0,0.7852]
[1745487572458,1.30291004,1740.7,1740.0,0.7852]
[1745487572639,2.07820104,1740.7,1740.0,0.7852]
[1745487573917,1.30291004,1740.7,1740.0,0.7852]
[1745487574120,0.75291004,1740.7,1740.0,0.7852]
[1745487574954,0.43160226,1740.7,1740.0,0.7852]
[1745487575137,4.12190778,1740.8,1740.0,0.7852]
[1745487575515,1.12190778,1740.8,1740.0,0.7852]
[1745487575711,4.12190778,1740.8,1740.0,0.7852]
[1745487577550,1.12190778,1740.8,1740.0,0.7852]
[1745487577923,4.12190778,1740.8,1740.0,0.7852]
[1745487578323,4.93409856,1740.8,1740.0,0.7852]
[1745487579466,3.45,1740.7,1740.0,0.7852]
[1745487579763,0.7799,1740.6,1740.0,0.7852]
[1745487581566,0.7699,1740.6,1740.0,0.7852]
[1745487582653,0.7699,1740.6,1740.1,5.494]
[1745487582859,0.7699,1740.6,1740.2,0.5494]
[1745487583062,0.7699,1740.6,1740.1,5.494]
[1745487584979,0.7699,1740.6,1740.0,0.7852]
[1745487584980,0.7699,1740.6,1740.2,5.494]
[1745487588012,0.7699,1740.6,1740.0,0.7852]
[1745487588184,0.7699,1740.6,1740.3,5.494]
[1745487589471,0.7699,1740.6,1740.0,0.7852]
[1745487589675,0.7699,1740.6,1740.1,5.494]
[1745487589875,0.7699,1740.6,1740.2,0.5494]
[1745487593910,0.7699,1740.6,1740.3,0.7659]
[1745487596913,0.7699,1740.6,1740.1,5.494]
[1745487597114,3.0,1740.5,1740.1,5.494]
[1745487597912,0.7704,1740.4,1740.1,5.494]
[1745487598075,0.7704,1740.4,1740.1,6.12484]
[1745487598678,0.7704,1740.4,1740.1,5.494]
[1745487599019,0.8038,1740.2,1739.7,0.1210424]
[1745487599315,0.8038,1740.2,1739.7,5.6150424]
[1745487599815,1.22631824,1740.2,1739.7,6.3982424]
[1745487600127,0.43251824,1740.2,1739.7,5.6150424]
[1745487600330,3.0,1740.3,1739.8,0.56150424]
[1745487602923,0.8249,1740.2,1739.8,0.56150424]
[1745487604220,1.24849634,1740.2,1739.8,0.56150424]
[1745487609924,4.24849634,1740.2,1739.8,0.56150424]
[1745487610825,1.24849634,1740.2,1739.8,0.56150424]
[1745487613338,1.24849634,1740.2,1739.8,6.05150424]
[1745487619741,3.0,1740.0,1739.8,6.05150424]
[1745487619927,1.24849634,1740.2,1739.8,6.05150424]
[1745487620319,4.24849634,1740.2,1739.8,6.05150424]
[1745487621340,1.24849634,1740.2,1739.8,6.05150424]
[1745487622507,1.24849634,1740.2,1739.8,6.86200424]
[1745487624968,0.7938,1740.5,1740.0,0.7553]
[1745487625638,3.0,1740.5,1740.0,0.7553]
[1745487626257,4.2264,1740.6,1740.0,0.7553]
[1745487626568,3.0,1740.5,1740.0,0.7553]
[1745487627764,3.0,1740.5,1740.1,5.49]
[1745487627963,2.975,1740.5,1740.2,0.549]
[1745487630069,0.43161808,1740.7,1740.3,0.7619]
[1745487630368,0.7568,1740.8,1740.3,0.7619]
[1745487634661,1.18679752,1740.8,1740.3,0.7619]
[1745487645100,4.18679752,1740.8,1740.3,0.7619]
[1745487645693,3.42999752,1740.8,1740.3,0.7619]
[1745487651392,3.42999752,1740.8,1740.3,0.7619]
[1745487653101,3.42999752,1740.8,1740.4,5.483]
[1745487653300,3.42999752,1740.8,1740.5,0.8024]
[1745487655071,0.42999752,1740.8,1740.5,0.8024]
[1745487655274,3.0,1740.9,1740.5,0.8024]
[1745487656101,6.87517553,1740.9,1740.4,5.483]
[1745487656302,6.45,1740.7,1740.4,5.483]
[1745487656536,7.17708,1740.7,1740.4,5.483]
[1745487656807,3.0,1740.7,1740.4,5.483]
[1745487660102,6.45,1740.7,1740.3,0.8292]
[1745487660498,6.45,1740.7,1740.2,0.8012]
[1745487661912,3.0,1740.7,1740.2,0.8012]
[1745487665233,0.8208,1740.8,1740.2,0.8012]
[1745487665597,6.87517553,1740.9,1740.2,0.8012]
[1745487668504,6.87517553,1740.9,1740.3,5.483]
[1745487668703,6.87517553,1740.9,1740.4,0.7913]
[1745487670333,3.42517553,1740.9,1740.4,0.7913]
[1745487671404,3.42517553,1740.9,1740.4,6.2663]
[1745487674735,3.42517553,1740.9,1740.5,0.8063]
[1745487674938,3.42517553,1740.9,1740.5,1.43443]
[1745487676640,0.42517553,1740.9,1740.6,0.7996]
[1745487676941,6.33836347,1741.0,1740.6,0.7996]
[1745487677341,6.03848751,1741.0,1740.6,0.7996]
[1745487677742,0.29981712,1741.3,1740.6,0.7996]
[1745487678113,0.7965,1741.5,1740.6,0.7996]
[1745487678312,4.23675626,1741.5,1740.6,0.7996]
[1745487678721,1.23675626,1741.5,1740.6,0.7996]
[1745487681841,0.44025626,1741.5,1740.6,0.7996]
[1745487682028,7.2533,1741.7,1740.6,0.7996]
[1745487682356,7.2533,1741.7,1740.7,0.7835]
[1745487682531,7.2533,1741.7,1740.8,6.2575]
[1745487682731,7.2533,1741.7,1741.0,0.7835]
[1745487683260,7.5346265,1741.7,1741.0,0.7835]
[1745487683477,4.0846265,1741.7,1741.0,0.7835]
[1745487684662,0.2813265,1741.7,1741.0,0.7835]
[1745487684835,6.03848751,1741.8,1741.0,0.7835]
[1745487685536,3.0,1741.7,1741.0,0.7835]
[1745487685868,3.43389532,1741.7,1741.0,0.7835]
[1745487686233,4.3811336,1741.7,1741.0,0.7835]
[1745487686437,0.7568,1741.6,1741.0,0.7835]
[1745487689643,4.3811336,1741.7,1741.0,0.7835]
[1745487689838,3.43389532,1741.7,1741.0,0.7835]
[1745487698458,3.43389532,1741.7,1741.1,5.472]
[1745487698659,3.43389532,1741.7,1741.3,0.7646]
[1745487703455,4.24089532,1741.7,1741.3,0.7646]
[1745487703656,4.24089532,1741.7,1741.2,0.7933]
[1745487705890,4.54064056,1741.7,1741.2,0.7933]
[1745487709002,3.73364056,1741.7,1741.2,0.7933]
[1745487709292,3.43389532,1741.7,1741.2,1.41983]
[1745487709691,0.43389532,1741.7,1741.2,1.41983]
[1745487709882,3.0,1741.7,1741.3,0.8128]
[1745487710991,3.4270576,1741.7,1741.3,0.8128]
[1745487714798,6.03848751,1741.8,1741.3,0.8128]
[1745487715176,1.10333689,1742.3,1741.3,0.8128]
[1745487715497,3.8036,1742.3,1741.3,0.8128]
[1745487715699,0.28193428,1742.3,1741.3,0.8128]
[1745487716003,3.0,1742.3,1741.4,0.809]
[1745487716185,6.46601649,1742.4,1741.5,5.463]
[1745487716375,3.0,1742.3,1741.7,0.809]
[1745487720089,0.7957,1742.2,1741.7,0.809]
[1745487720902,0.55,1742.1,1741.7,0.809]
[1745487721267,3.55,1742.1,1741.7,0.809]
[1745487721610,3.55,1742.1,1741.6,0.7613]
[1745487721803,0.355,1742.0,1741.6,0.7613]
[1745487728739,0.55,1741.9,1741.6,0.7613]
[1745487729028,1.3559,1741.9,1741.5,5.462]
[1745487729398,4.3559,1741.9,1741.5,5.462]
[1745487730026,1.3559,1741.9,1741.5,5.462]
[1745487730326,4.3559,1741.9,1741.5,5.462]
[1745487730506,0.43559,1741.8,1741.4,0.7756]
[1745487731298,1.3559,1741.9,1741.4,0.7756]
[1745487731489,1.78060138,1741.9,1741.4,0.7756]
[1745487738026,0.42470138,1741.9,1741.4,0.7756]
[1745487738234,0.7773,1742.3,1741.4,0.7756]
[1745487738408,0.42914862,1742.3,1741.4,0.7756]
[1745487738739,0.55,1742.3,1741.4,0.7756]
[1745487738946,3.55,1742.3,1741.4,0.7756]
[1745487740144,3.45,1742.2,1741.4,0.7756]
[1745487740446,3.55,1742.3,1741.4,0.7756]
[1745487741728,5.30713635,1742.3,1741.4,0.7756]
[1745487741906,8.75713635,1742.3,1741.4,0.7756]
[1745487742308,5.73469122,1742.3,1741.4,0.7756]
[1745487742624,3.97755487,1742.3,1741.4,0.7756]
[1745487747962,3.42755487,1742.3,1741.4,0.7756]
[1745487748449,3.42755487,1742.3,1741.5,0.7733]
[1745487748620,3.42755487,1742.3,1741.4,5.74249622]
[1745487748621,3.42755487,1742.3,1741.7,0.7733]
[1745487761967,3.42755487,1742.3,1741.8,0.7876]
[1745487762259,3.42755487,1742.3,1741.8,6.2306]
[1745487763232,3.0,1742.1,1741.8,0.7876]
[1745487763542,3.0,1741.9,1741.6,6.2067]
[1745487763878,0.3,1741.8,1741.6,0.7637]
[1745487764172,3.0,1741.7,1741.5,0.7925]
[1745487764372,0.3,1741.8,1741.5,0.7925]
[1745487764525,0.98999356,1741.8,1741.5,0.7925]
[1745487765456,0.98999356,1741.8,1741.4,6.2475]
[1745487767552,0.98999356,1741.8,1741.2,0.7563]
[1745487768066,7.43999356,1741.8,1741.2,0.7563]
[1745487770368,0.98999356,1741.8,1741.2,0.7563]
[1745487771369,0.43999356,1741.8,1741.2,0.7563]
[1745487771576,3.0,1741.9,1741.2,0.7563]
[1745487772782,6.63495487,1742.3,1741.2,0.7563]
[1745487772970,12.67344238,1742.3,1741.2,0.7563]
[1745487773265,0.55,1742.2,1741.2,0.7563]
[1745487773470,3.0,1742.2,1741.2,0.7563]
[1745487773844,3.0,1742.2,1741.3,0.8188]
[1745487777645,6.46604238,1742.3,1741.4,5.74238046]
[1745487777839,6.46604238,1742.3,1741.6,0.7886]
[1745487778039,3.0,1742.2,1741.6,0.7886]
[1745487778356,6.46604238,1742.3,1741.7,0.7521]
[1745487779536,1.2,1742.2,1741.7,0.7521]
[1745487780440,6.46604238,1742.3,1741.7,0.7521]
[1745487781578,6.03848751,1742.3,1741.7,0.7521]
[1745487781741,6.03848751,1742.3,1741.6,0.7807]
[1745487781940,6.03848751,1742.3,1741.8,0.7807]
[1745487782183,6.03848751,1742.3,1742.0,0.7585]
[1745487782387,0.28023671,1742.8,1742.0,0.7585]
[1745487782676,3.55,1742.9,1742.0,0.7585]
[1745487782876,0.355,1742.8,1742.0,0.7585]
[1745487783777,0.7801521,1742.8,1742.0,0.7585]
[1745487786067,0.55,1742.7,1742.0,0.7585]
[1745487786270,1.3576,1742.7,1742.0,0.7585]
[1745487787544,4.3576,1742.7,1742.0,0.7585]
[1745487787782,0.55,1742.5,1742.0,0.7585]
[1745487789654,3.55,1742.5,1742.0,0.7585]
[1745487790080,3.0,1742.5,1742.0,0.7585]
[1745487790384,3.88576,1742.6,1742.0,0.7585]
[1745487790385,0.43576,1742.6,1742.0,0.7585]
[1745487790763,3.55,1742.7,1742.0,0.7585]
[1745487791155,3.55,1742.7,1742.0,0.61636734]
[1745487792021,7.0,1742.7,1742.0,0.61636734]
[1745487794040,4.2,1742.6,1742.0,0.61636734]
[1745487798656,3.4251521,1742.8,1742.0,0.61636734]
[1745487799017,4.19558584,1742.8,1742.0,0.61636734]
[1745487799414,3.45,1742.7,1742.0,0.61636734]
[1745487799642,3.4251521,1742.8,1742.0,0.61636734]
[1745487799643,0.4251521,1742.8,1742.0,0.61636734]
[1745487799846,3.82918528,1742.9,1742.0,0.61636734]
[1745487800045,3.27918528,1742.9,1742.0,0.61636734]
[1745487804521,3.70267548,1742.9,1742.0,0.61636734]
[1745487805746,3.4234902,1742.9,1742.0,0.61636734]
[1745487815072,3.4234902,1742.9,1742.2,0.8135]
[1745487815263,3.4234902,1742.9,1742.4,0.7902]
[1745487816388,3.4234902,1742.9,1742.4,1.41242]
[1745487817093,3.4234902,1742.9,1742.3,5.432]
[1745487817094,3.4234902,1742.9,1742.5,0.7505]
[1745487819156,1.2,1742.8,1742.5,0.7505]
[1745487820791,1.3169,1742.8,1742.5,0.7505]
[1745487820988,1.3169,1742.8,1742.4,0.8243]
[1745487821355,3.0,1742.7,1742.4,0.8243]
[1745487821670,0.3,1742.6,1742.2,0.825]
[1745487825913,1.3169,1742.8,1742.2,0.825]
[1745487827600,0.55,1742.6,1742.2,0.825]
[1745487829216,1.2,1742.5,1742.2,0.825]
[1745487836910,4.2,1742.5,1742.2,0.825]
[1745487838393,4.2,1742.5,1742.1,6.19]
[1745487838713,0.42,1742.4,1742.1,6.19]
[1745487840188,4.2,1742.5,1742.1,6.19]
[1745487841324,6.62840163,1743.1,1742.2,0.758]
[1745487841325,6.03848751,1743.0,1742.2,0.758]
[1745487841689,3.0,1742.9,1742.3,0.758]
[1745487842732,3.43470774,1742.9,1742.3,0.758]
[1745487842924,4.38202726,1742.9,1742.3,0.758]
[1745487850544,6.03848751,1743.0,1742.3,0.758]
[1745487850707,3.0,1742.9,1742.3,0.758]
[1745487851147,6.03848751,1743.0,1742.3,0.758]
[1745487851649,3.0,1742.9,1742.3,0.758]
[1745487861064,3.0,1742.9,1742.4,5.412]
[1745487861265,3.98084875,1742.9,1742.4,6.1984]
[1745487863473,3.0,1742.9,1742.5,0.7859]
[1745487870532,3.8094,1742.9,1742.5,0.7859]
[1745487871678,7.2544,1742.9,1742.4,5.412]
[1745487871837,7.2544,1742.9,1742.3,0.7901]
[1745487872034,7.2639,1742.7,1742.1,0.787]
[1745487872347,0.72639,1742.6,1742.1,0.787]
[1745487875341,1.14635486,1742.6,1742.1,0.787]
[1745487876037,0.41996486,1742.6,1742.1,0.787]
[1745487876251,3.0,1742.8,1742.1,0.787]
[1745487878779,1.3789,1742.7,1742.1,0.787]
[1745487880789,4.3789,1742.7,1742.1,0.787]
[1745487883450,1.3789,1742.7,1742.1,0.787]
[1745487883694,4.3789,1742.7,1742.1,0.787]
[1745487883992,4.3789,1742.7,1742.2,0.8238]
[1745487883993,1.3789,1742.7,1742.2,0.8238]
[1745487884979,0.8289,1742.7,1742.2,0.8238]
[1745487888261,3.8052,1742.8,1742.2,0.8238]
[1745487888959,3.8052,1742.8,1742.2,6.2278]
[1745487889963,3.8052,1742.8,1742.3,0.8303]
[1745487890163,4.78956875,1742.8,1742.3,0.8303]
[1745487890362,3.98436875,1742.8,1742.3,0.8303]
[1745487901213,3.0,1742.6,1742.3,0.8303]
[1745487901426,4.19155468,1742.6,1742.2,0.8216]
[1745487901713,6.995,1742.4,1742.0,6.2256]
[1745487901931,7.75601405,1742.4,1742.0,0.8216]
[1745487902107,0.8266,1742.3,1741.8,0.8209]
[1745487902413,7.8216,1742.4,1741.8,0.8209]
[1745487907619,4.3766,1742.4,1741.9,0.8191]
[1745487907921,1.18294063,1742.6,1741.9,0.8191]
[1745487908123,1.24679547,1742.6,1741.9,0.8191]
[1745487909536,3.55,1742.5,1741.9,0.8191]
[1745487910927,3.445,1742.4,1741.9,0.8191]
[1745487911242,3.55,1742.5,1741.9,0.8191]
[1745487913910,0.55,1742.3,1741.9,0.8191]
[1745487914111,0.55,1742.1,1741.7,6.234]
[1745487914831,3.7754,1742.2,1741.7,6.234]
[1745487915821,3.0,1742.2,1741.7,5.404]
[1745487916000,3.0,1742.2,1741.8,0.7674]
[1745487916204,3.0,1742.2,1741.8,1.38454]
[1745487917001,3.0,1742.2,1741.9,0.8262]
[1745487917204,6.03848751,1742.3,1741.9,0.8262]
[1745487917442,0.55,1742.2,1741.7,5.404]
[1745487917645,0.7939,1742.1,1741.7,5.404]
[1745487917933,6.995,1742.0,1741.4,6.1734]
[1745487918703,7.4220176,1742.0,1741.4,6.1734]
[1745487923769,0.826,1741.9,1741.4,6.1734]
[1745487923971,0.826,1741.9,1741.3,18.944]
[1745487923972,3.55,1741.8,1741.3,18.944]
[1745487924255,4.12429639,1741.8,1741.3,18.944]
[1745487924558,4.12429639,1741.8,1741.2,6.2207]
[1745487924730,0.7752,1741.7,1741.2,6.2207]
[1745487925122,0.55,1741.6,1741.2,6.2207]
[1745487932357,1.2,1741.5,1741.2,6.2207]
[1745487933363,1.2,1741.5,1741.2,5.396]
[1745487934526,1.49090856,1741.5,1741.2,5.396]
[1745487934947,1.92583601,1741.5,1741.2,5.396]
[1745487935160,1.63492745,1741.5,1741.2,5.396]
[1745487935551,1.2,1741.5,1741.3,0.7567]
[1745487937952,1.2,1741.5,1741.4,0.76101405]
[1745487938264,1.2,1741.5,1741.4,1.56591405]
[1745487940550,1.2,1741.5,1741.4,0.8049]
[1745487943887,1.2,1741.5,1741.3,0.7678]
[1745487960093,1.2,1741.5,1741.4,5.387]
[1745487960387,1.2,1741.5,1741.4,6.00248]
[1745487964099,1.2,1741.5,1741.4,5.387]
[1745487967419,1.2,1741.5,1741.4,6.1976]
[1745487970643,1.2,1741.5,1741.4,5.387]
[1745487970821,2.0146,1741.5,1741.0,5.387]
[1745487971332,0.7612,1741.4,1741.0,5.387]
[1745487972151,0.7612,1741.4,1741.0,5.388]
[1745487978577,1.2,1741.3,1741.0,5.388]
[1745487982067,0.7914,1741.2,1741.0,5.388]
[1745487982644,0.7914,1741.2,1740.8,18.949]
[1745487982947,0.7914,1741.2,1740.7,5.379]
[1745487983151,3.0,1741.2,1740.7,5.379]
[1745487983447,0.7914,1741.0,1740.2,0.8136]
[1745487983766,0.7914,1741.0,1740.3,5.379]
[1745487983958,3.76173923,1740.9,1740.2,0.8136]
[1745487984165,3.76173923,1740.9,1740.1,24.332]
[1745487984166,0.7914,1740.8,1740.1,24.332]
[1745487984362,0.76173923,1740.7,1740.1,24.332]
[1745487984678,0.7831,1740.6,1740.1,24.332]
[1745487986392,0.7831,1740.6,1740.1,26.84137392]
[1745487986691,0.7831,1740.6,1740.1,24.332]
[1745487987051,0.7831,1740.6,1740.1,5.379]
[1745487988767,0.8125,1740.4,1740.1,5.379]
[1745487990770,1.10040709,1740.4,1740.1,5.379]
[1745487991083,0.7556,1740.3,1740.1,5.379]
[1745487991559,0.7556,1740.3,1739.8,5.381]
[1745487991759,0.7556,1740.3,1739.8,5.93120424]
[1745487992295,0.7556,1740.3,1739.8,5.381]
[1745487994398,0.7556,1740.3,1740.0,0.76173923]
[1745487994698,0.7556,1740.3,1739.8,6.14273923]
[1745487995474,1.964,1740.5,1740.2,0.76173923]
[1745487996102,1.964,1740.5,1740.0,0.76173923]
[1745487996405,1.2,1740.5,1740.2,1.53693923]
[1745487996692,1.2,1740.5,1740.2,6.91893923]
[1745487996898,1.2,1740.5,1740.3,0.69189392]
[1745487999526,0.7576,1740.4,1740.2,5.382]
[1745487999688,0.7576,1740.4,1740.0,5.381]
[1745488000193,0.7576,1740.4,1740.0,6.14273923]
[1745488003125,1.9592,1740.5,1740.0,6.14273923]
[1745488003299,1.9592,1740.5,1740.2,0.76173923]
[1745488003826,1.9592,1740.5,1740.0,5.381]
[1745488004129,1.9592,1740.5,1740.1,0.5381]
[1745488004330,1.9592,1740.5,1740.0,6.14273923]
[1745488005592,1.9592,1740.5,1740.0,5.381]
[1745488006108,3.7767,1740.4,1740.0,5.381]
[1745488006417,3.7767,1740.4,1740.0,6.1514]
[1745488007332,3.76693871,1740.4,1740.0,6.1514]
[1745488008935,3.76693871,1740.4,1740.0,6.84271392]
[1745488009667,0.76693871,1740.4,1740.0,6.84271392]
[1745488012741,0.76693871,1740.4,1740.0,6.07231392]
[1745488017633,2.0218,1740.5,1740.1,1.57103923]
[1745488018031,2.0218,1740.5,1740.1,0.76173923]
[1745488018845,1.2,1740.5,1740.2,0.8069]
[1745488019767,1.2,1740.5,1740.1,1.52583455]
[1745488019768,1.2,1740.5,1740.1,2.28763455]
[1745488021232,0.7666,1740.4,1740.1,0.76409532]
[1745488021431,0.7666,1740.4,1740.1,5.372]
[1745488021626,3.7666,1740.4,1740.1,5.372]
[1745488023064,0.7545,1740.3,1740.1,5.372]
[1745488025783,0.7545,1740.3,1740.1,3.602]
[1745488026079,1.12995,1740.3,1740.1,3.602]
[1745488026284,2.0004,1740.5,1740.1,3.602]
[1745488027951,2.0004,1740.5,1740.1,4.36373923]
[1745488028473,1.2,1740.5,1740.3,0.76173923]
[1745488028642,1.2,1740.5,1740.4,0.7743]
[1745488029581,1.2,1740.5,1740.3,1.53603923]
[1745488030434,2.0317,1740.5,1740.1,3.602]
[1745488030651,2.0317,1740.5,1740.1,4.12074392]
[1745488031374,1.2,1740.5,1740.1,4.12074392]
[1745488032691,1.2,1740.5,1740.4,0.76173923]
[1745488034142,1.2,1740.5,1740.4,7.32694479]
[1745488034373,0.7667,1741.2,1740.6,5.74499977]
[1745488034553,0.7667,1741.2,1740.8,0.76173923]
[1745488035865,1.20019287,1741.2,1740.8,0.76173923]
[1745488036644,1.20019287,1741.2,1740.7,6.75329998]
[1745488036847,1.20019287,1741.2,1740.7,7.51503921]
[1745488038346,1.20019287,1741.2,1740.8,0.75150392]
[1745488040179,0.81,1741.4,1740.9,1.53583923]
[1745488041285,0.81,1741.4,1740.9,0.7741]
[1745488042651,1.23783167,1741.4,1740.9,0.7741]
[1745488045358,0.42783167,1741.4,1741.0,0.76173923]
[1745488045559,0.8017,1741.5,1741.0,0.76173923]
[1745488045900,0.8017,1741.5,1741.1,5.361]
[1745488046063,0.8017,1741.5,1741.1,6.76637392]
[1745488047165,1.23780311,1741.5,1741.1,6.76637392]
[1745488049106,0.8018,1741.4,1741.1,5.97327392]
[1745488049312,0.8018,1741.4,1741.1,5.361]
[1745488050465,0.8018,1741.4,1741.1,6.1768]
[1745488051002,0.43610311,1741.5,1741.1,6.1768]
[1745488051208,4.10026184,1741.6,1741.1,6.1768]
[1745488051703,4.53240491,1741.6,1741.1,6.1768]
[1745488051911,1.23974307,1741.6,1741.1,6.79448]
[1745488052075,0.7706,1741.8,1741.3,0.819]
[1745488054816,1.20679226,1741.8,1741.3,0.819]
[1745488059197,0.43619226,1741.8,1741.3,0.819]
[1745488059514,3.796,1741.9,1741.3,0.819]
[1745488059885,4.23711313,1741.9,1741.3,0.819]
[1745488064624,3.44111313,1741.9,1741.5,0.7772]
[1745488064828,6.05,1742.0,1741.7,0.7772]
[1745488064992,7.17936105,1742.4,1741.9,0.7772]
[1745488065319,3.0,1742.3,1741.9,0.7772]
[1745488067642,3.70945637,1742.3,1741.9,0.7772]
[1745488071934,3.41998035,1742.3,1741.9,0.7772]
[1745488072339,0.41998035,1742.3,1741.9,0.7772]
[1745488072637,3.0,1742.3,1741.9,0.7772]
[1745488075058,3.43270969,1742.3,1741.9,0.7772]
[1745488077967,3.43270969,1742.3,1741.9,1.46699392]
[1745488078566,3.43270969,1742.3,1741.9,0.68979392]
[1745488078773,3.43270969,1742.3,1742.0,0.8038]
[1745488081944,5.349,1743.0,1742.2,0.7605]
[1745488082142,6.05,1743.2,1742.7,0.7605]
[1745488082371,4.0,1742.8,1742.7,0.7605]
[1745488082590,7.0,1742.8,1742.7,0.7605]
[1745488083188,3.995,1742.6,1742.2,0.7681]
[1745488083388,3.7738,1742.5,1742.0,0.7681]
[1745488083548,4.19920641,1742.5,1742.0,0.7681]
[1745488083751,3.42540641,1742.5,1742.0,0.7681]
[1745488083993,3.42540641,1742.5,1742.0,1.52486332]
[1745488085159,3.445,1742.4,1742.0,1.52486332]
[1745488085770,0.9,1742.3,1742.0,1.52486332]
[1745488091104,4.7076,1742.3,1741.9,5.348]
[1745488091304,8.1526,1742.3,1741.9,5.348]
[1745488092691,8.1526,1742.3,1741.9,6.1712]
[1745488094603,1.7076,1742.3,1741.9,6.1712]
[1745488096777,1.7076,1742.3,1741.9,6.93293923]